bitfinex-derivatives/quotes_ETHF0:USTF0_20250905
["timestamp","ask_amount","ask_price","bid_price","bid_amount"]
[1757073583578,3.9247,4418.9,4418.8,0.7047]
[1757073584686,3.9247,4418.9,4418.8,0.2098]
[1757073585289,0.3056,4418.8,4418.6,0.5233]
[1757073585484,0.7169,4418.7,4418.6,0.7331]
[1757073585692,0.7169,4418.7,4418.6,0.5051]
[1757073587487,0.7169,4418.7,4418.6,0.7047]
[1757073600195,0.7169,4418.7,4418.3,41.1156]
[1757073600385,0.3995,4418.5,4418.4,0.7138]
[1757073600593,0.5084,4418.8,4418.7,0.7138]
[1757073601791,0.7069,4418.8,4418.7,0.7138]
[1757073602499,0.5084,4418.8,4418.7,0.7138]
[1757073602799,0.7069,4418.8,4418.7,0.7138]
[1757073603097,3.2078,4418.9,4418.7,0.7138]
[1757073603292,3.4088,4418.9,4418.8,0.3156]
[1757073603593,3.9147,4418.9,4418.8,0.7138]
[1757073603795,0.3074,4419.3,4419.0,0.1227]
[1757073603994,3.2078,4419.4,4419.3,0.3982]
[1757073604196,3.9147,4419.4,4419.3,0.7138]
[1757073604598,3.9147,4419.4,4419.3,41.5138]
[1757073605396,3.7162,4419.4,4419.3,41.5138]
[1757073605703,3.2078,4419.4,4419.3,41.5138]
[1757073606402,3.5152,4419.4,4419.3,41.5138]
[1757073606602,3.5152,4419.4,4419.3,41.7418]
[1757073606896,3.2078,4419.4,4419.3,41.7418]
[1757073607104,0.7069,4420.3,4420.2,0.7138]
[1757073607301,0.7069,4420.3,4420.2,0.5081]
[1757073607506,0.7069,4420.3,4420.2,0.7138]
[1757073609506,0.7069,4420.3,4419.9,0.5436]
[1757073609701,0.3995,4420.3,4420.2,0.1925]
[1757073610205,0.1189,4420.0,4419.9,0.7361]
[1757073610507,0.8258,4420.0,4419.9,0.4205]
[1757073610802,0.1189,4419.5,4419.0,0.3156]
[1757073611008,0.7069,4419.1,4419.0,0.1925]
[1757073611204,0.5084,4418.6,4418.5,0.8365]
[1757073611400,0.5084,4418.6,4418.5,41.6365]
[1757073612807,0.3074,4418.9,4418.6,0.3156]
[1757073613007,0.5084,4418.9,4418.8,0.7138]
[1757073613705,0.5084,4418.9,4418.8,41.5138]
[1757073614402,0.3074,4418.8,4418.4,0.3156]
[1757073614602,0.7069,4418.4,4418.3,2.8361458]
[1757073615308,3.9147,4418.4,4418.3,2.8361458]
[1757073615702,3.9147,4418.4,4417.0,38.62104349]
[1757073615703,0.7069,4417.2,4417.1,0.1925]
[1757073615911,0.3074,4417.1,4417.0,45.04804349]
[1757073616110,0.3074,4417.1,4417.0,45.36364349]
[1757073618405,0.7031,4417.1,4417.0,4.76784349]
[1757073621613,0.7031,4417.1,4417.0,0.7123]
[1757073624311,3.2078,4417.2,4417.0,0.8392]
[1757073624610,0.5175,4418.0,4417.9,0.7108]
[1757073624814,0.7455,4418.0,4417.9,0.1945]
[1757073625014,1.0332,4418.0,4417.9,0.1945]
[1757073625515,1.0332,4418.0,4417.9,0.5066]
[1757073625908,1.0332,4418.0,4417.6,40.8]
[1757073626113,0.685,4417.7,4417.6,40.8]
[1757073626410,0.913,4417.7,4417.6,40.8]
[1757073626613,0.913,4417.7,4417.0,0.439]
[1757073626910,0.685,4417.6,4417.5,0.1945]
[1757073627113,0.685,4417.6,4417.5,40.9945]
[1757073627314,0.685,4417.6,4417.5,40.8]
[1757073628316,0.685,4417.6,4417.5,41.1121]
[1757073628511,0.228,4417.6,4417.5,41.239]
[1757073628814,0.228,4417.6,4417.5,41.52112392]
[1757073629720,0.228,4417.6,4417.5,41.52109301]
[1757073630515,3.2078,4417.8,4417.7,0.7108]
[1757073630716,3.9261,4417.8,4417.7,0.7108]
[1757073631022,4.1208,4417.8,4417.7,0.5066]
[1757073631922,4.1208,4417.8,4417.7,0.7108]
[1757073632820,4.1208,4417.8,4417.7,0.3987]
[1757073633119,0.2877,4417.7,4416.7,0.228]
[1757073633319,3.6051,4417.3,4416.8,0.28217101]
[1757073633521,0.913,4417.2,4417.1,0.1945]
[1757073633816,0.913,4417.2,4417.1,0.78877101]
[1757073635016,0.913,4417.2,4417.1,0.78878374]
[1757073635418,0.913,4417.2,4417.1,0.99298374]
[1757073637619,0.685,4417.2,4417.1,0.99298374]
[1757073637818,0.913,4417.2,4417.1,0.99298374]
[1757073638320,0.913,4417.2,4417.1,0.99336404]
[1757073639623,0.913,4417.2,4417.1,0.68126404]
[1757073639823,0.913,4417.2,4417.1,0.99336404]
[1757073641330,0.913,4417.2,4417.1,0.68126404]
[1757073641515,0.913,4417.2,4417.1,0.47706404]
[1757073642217,4.913,4417.2,4417.1,0.28256404]
[1757073642416,4.913,4417.2,4416.2,0.228]
[1757073642621,0.685,4416.3,4416.2,0.1945]
[1757073643023,0.685,4416.3,4416.2,40.9945]
[1757073643222,0.685,4416.3,4416.2,41.3066]
[1757073646033,0.685,4416.3,4416.2,0.5066]
[1757073646332,0.685,4416.3,4416.2,0.7108]
[1757073647626,0.913,4416.3,4416.2,0.7108]
[1757073652736,0.685,4416.3,4416.2,0.7108]
[1757073652934,3.2078,4416.5,4416.3,0.3136]
[1757073653138,3.2078,4416.5,4416.4,0.7124]
[1757073653534,0.2952,4417.0,4416.4,41.5124]
[1757073653738,0.6951,4416.6,4416.5,0.5056]
[1757073653931,0.9231,4416.6,4416.5,0.7124]
[1757073654841,0.6951,4416.6,4416.5,0.8346]
[1757073655035,0.4962,4416.9,4416.8,0.3988]
[1757073655339,0.9231,4416.9,4416.8,0.7124]
[1757073656541,0.9231,4416.9,4416.8,0.3988]
[1757073656735,0.9231,4416.9,4416.8,0.192]
[1757073657334,0.6951,4416.9,4416.8,0.192]
[1757073657638,0.9231,4416.9,4416.3,40.8]
[1757073657836,0.2952,4416.8,4416.7,0.192]
[1757073658037,0.6951,4416.8,4416.7,0.7124]
[1757073658239,0.228,4416.9,4416.7,0.3988]
[1757073658438,0.228,4416.9,4416.8,0.3136]
[1757073658635,0.228,4416.9,4416.8,0.7124]
[1757073658829,0.6279,4416.9,4416.8,0.7124]
[1757073659030,0.9231,4416.9,4416.8,0.7124]
[1757073659335,0.9231,4416.9,4416.4,0.3136]
[1757073659541,0.201,4416.4,4416.3,41.028]
[1757073659741,0.4962,4416.4,4416.3,41.028]
[1757073660132,0.201,4416.4,4416.3,41.3416]
[1757073660338,3.4358,4417.0,4416.7,0.3136]
[1757073660543,3.932,4417.0,4416.9,0.3988]
[1757073660838,3.704,4417.0,4416.9,0.7124]
[1757073661042,4.1309,4417.0,4416.9,0.7124]
[1757073661234,4.2485,4417.0,4416.6,0.3136]
[1757073661438,4.2485,4417.0,4416.3,0.3136]
[1757073661749,4.2485,4417.0,4416.9,0.5056]
[1757073662542,4.2485,4417.0,4416.9,0.7124]
[1757073664044,4.2485,4417.0,4416.9,0.192]
[1757073664246,4.2485,4417.0,4416.2,0.228]
[1757073664247,4.2485,4417.0,4416.3,0.3136]
[1757073664637,0.6951,4416.2,4416.1,40.8]
[1757073665138,0.6951,4416.2,4416.1,41.1136]
[1757073665842,0.2952,4416.9,4416.6,0.3136]
[1757073666042,0.2952,4416.9,4416.5,0.1222]
[1757073666043,0.6951,4416.9,4416.8,0.192]
[1757073666246,0.9231,4416.9,4416.4,0.3136]
[1757073666445,0.9231,4416.9,4416.1,44.2358]
[1757073666643,0.201,4416.3,4416.2,0.93882]
[1757073666946,0.6951,4416.3,4416.2,0.7124]
[1757073667446,0.2952,4416.2,4415.5,0.3136]
[1757073667643,0.6951,4415.6,4415.5,0.7124]
[1757073667943,0.6951,4415.6,4415.5,41.5124]
[1757073669642,0.3999,4415.2,4415.1,0.7124]
[1757073669845,0.6951,4415.2,4415.1,0.7124]
[1757073670044,0.6951,4415.2,4415.1,41.5124]
[1757073675552,0.6951,4415.2,4415.1,0.7124]
[1757073675752,0.6951,4415.2,4415.1,0.3988]
[1757073676457,0.6951,4415.2,4415.1,0.7124]
[1757073678255,0.9241,4415.2,4415.1,0.7124]
[1757073678650,3.2078,4415.5,4415.1,0.7124]
[1757073678850,0.229,4415.4,4415.2,0.3163]
[1757073679050,0.7424,4415.4,4415.3,0.4052]
[1757073679245,0.9474,4415.4,4415.3,0.7215]
[1757073680055,3.2078,4415.5,4415.3,0.7215]
[1757073680354,3.2078,4415.5,4415.4,0.7215]
[1757073680355,3.7212,4415.5,4415.4,0.7215]
[1757073680556,3.9502,4415.5,4415.4,0.7215]
[1757073681056,4.1552,4415.5,4415.4,0.7215]
[1757073682958,3.9262,4415.5,4415.4,0.7215]
[1757073683154,4.1542,4415.5,4415.4,0.7215]
[1757073683550,3.2078,4415.5,4415.4,0.7215]
[1757073683751,0.5134,4415.9,4415.8,0.4052]
[1757073683951,0.7424,4415.9,4415.8,0.7215]
[1757073684155,0.9474,4415.9,4415.8,0.7215]
[1757073685057,0.9474,4415.9,4415.8,0.1998]
[1757073685250,0.9474,4415.9,4415.5,0.3163]
[1757073685560,0.9474,4415.9,4415.1,0.3163]
[1757073687057,0.7184,4415.9,4415.1,0.3163]
[1757073687257,0.5134,4415.7,4415.6,0.1998]
[1757073687454,0.7184,4415.7,4415.6,0.1998]
[1757073687757,0.7184,4415.7,4415.1,0.3163]
[1757073687949,3.9262,4415.2,4415.1,0.4052]
[1757073688151,0.1181,4415.0,4414.9,40.8]
[1757073688352,0.7184,4414.6,4414.5,0.7215]
[1757073688657,0.8365,4414.5,4414.4,0.1998]
[1757073688861,0.8365,4414.5,4414.4,0.7215]
[1757073689361,0.7424,4414.5,4414.4,0.7215]
[1757073689751,0.1966,4414.5,4414.4,0.7215]
[1757073689956,0.229,4414.6,4414.5,0.8444]
[1757073690163,0.4256,4414.6,4414.5,0.8444]
[1757073690364,0.7424,4414.6,4414.5,0.8444]
[1757073691963,0.5134,4414.6,4414.5,0.8444]
[1757073692958,3.2078,4414.8,4414.5,0.5281]
[1757073693160,3.2078,4415.3,4415.2,0.4052]
[1757073693363,3.9502,4415.3,4415.2,0.7215]
[1757073693760,3.4044,4415.3,4415.2,0.7215]
[1757073693965,3.2078,4415.3,4415.2,4.94799]
[1757073694162,0.3168,4416.2,4415.2,4.9505]
[1757073694461,0.9474,4416.2,4416.1,0.7215]
[1757073694858,0.9474,4416.2,4416.1,0.1998]
[1757073695059,0.9474,4416.2,4416.1,40.8]
[1757073696062,0.9474,4416.2,4415.6,0.3163]
[1757073696373,0.9474,4416.2,4415.5,0.3519]
[1757073696374,0.1181,4416.0,4415.7,40.8]
[1757073696561,0.1181,4416.0,4415.2,0.5161]
[1757073696562,0.7184,4415.3,4415.2,0.5161]
[1757073696866,0.9474,4415.3,4415.2,0.7215]
[1757073697063,3.7212,4415.8,4415.7,0.7215]
[1757073697264,3.9502,4415.8,4415.7,0.7215]
[1757073697567,4.1552,4415.8,4415.7,0.7215]
[1757073697769,3.9262,4415.8,4415.7,0.7215]
[1757073698068,4.1552,4415.8,4415.7,0.7215]
[1757073698967,3.4368,4415.8,4415.7,0.7215]
[1757073699171,3.2078,4415.8,4415.7,0.7215]
[1757073699671,3.4044,4415.8,4415.7,0.7215]
[1757073699865,3.9262,4415.8,4415.7,0.7215]
[1757073701371,0.4016,4414.7,4414.6,41.1163]
[1757073701668,0.7184,4414.7,4414.6,41.1163]
[1757073702274,0.7184,4414.7,4414.6,40.8]
[1757073703773,3.9262,4414.7,4414.6,40.8]
[1757073704274,3.9262,4414.7,4414.1,0.229]
[1757073704471,0.5134,4414.1,4414.0,0.7215]
[1757073704772,0.5134,4414.1,4414.0,41.5215]
[1757073705974,0.5134,4414.1,4414.0,41.6444]
[1757073706574,0.1966,4414.1,4414.0,41.6444]
[1757073706976,0.5134,4414.1,4414.0,41.5215]
[1757073709175,0.1261,4414.0,4413.3,2.82698167]
[1757073709372,0.7318,4413.4,4413.3,3.54108167]
[1757073709571,0.9608,4413.4,4413.3,3.54108167]
[1757073709873,0.7318,4413.4,4413.3,3.54108167]
[1757073710073,0.9618,4413.4,4413.3,3.54108167]
[1757073710270,0.23,4413.4,4413.3,3.54108167]
[1757073710471,0.7547,4413.4,4413.3,3.54108167]
[1757073711275,0.9618,4413.4,4413.3,3.85578348]
[1757073712774,0.9618,4413.4,4413.3,3.14168348]
[1757073713175,0.9618,4413.4,4413.3,3.34118348]
[1757073713479,0.9618,4413.4,4413.3,3.85578348]
[1757073715280,0.9618,4413.4,4413.3,1.02880181]
[1757073715482,0.4151,4414.0,4413.9,0.3963]
[1757073715678,0.7318,4414.0,4413.9,1.02880181]
[1757073716179,0.8579,4414.0,4413.9,0.71100181]
[1757073716482,0.8579,4414.0,4413.9,0.51420181]
[1757073717274,0.8579,4414.0,4413.9,1.02880181]
[1757073717979,1.0879,4414.0,4413.9,1.02880181]
[1757073718179,0.8579,4414.0,4413.9,1.02880181]
[1757073718481,0.9618,4414.0,4413.9,1.02880181]
[1757073720069,1.0879,4414.0,4413.9,1.02880181]
[1757073720274,1.0879,4414.0,4413.9,1.02816139]
[1757073720670,0.208,4414.0,4413.9,0.71036139]
[1757073720981,3.4368,4414.2,4414.1,0.7141]
[1757073721177,3.2078,4414.2,4414.1,1.02816139]
[1757073721681,3.4378,4414.2,4414.1,1.02816139]
[1757073722277,3.9625,4414.2,4414.1,1.02816139]
[1757073722876,4.1696,4414.2,4414.1,0.31403331]
[1757073724783,4.16879502,4414.2,4414.1,0.31403331]
[1757073725481,3.93879502,4414.2,4414.1,0.31403331]
[1757073725687,4.16879502,4414.2,4414.1,1.02813331]
[1757073726776,4.16879502,4414.2,4414.1,0.51353331]
[1757073727284,3.93879502,4414.2,4414.1,0.31403331]
[1757073727480,4.16879502,4414.2,4414.1,0.51353331]
[1757073727686,4.16879502,4414.2,4414.1,0.83133331]
[1757073727883,3.93879502,4414.2,4414.1,0.83133331]
[1757073728080,4.16779502,4414.2,4414.1,1.02813331]
[1757073728989,3.93879502,4414.2,4414.1,1.02813331]
[1757073729180,4.16779502,4414.2,4414.1,1.02813331]
[1757073730985,3.93879502,4414.2,4414.1,1.02813331]
[1757073731186,4.16779502,4414.2,4414.1,1.02813331]
[1757073733091,3.93879502,4414.2,4414.1,1.02813331]
[1757073733294,4.16779502,4414.2,4414.1,1.02813331]
[1757073734588,4.16779502,4414.2,4414.1,0.51353331]
[1757073735895,4.16779502,4414.2,4414.1,0.83133331]
[1757073736096,4.16779502,4414.2,4414.1,0.31403331]
[1757073741006,4.16779502,4414.2,4414.1,0.31546535]
[1757073745314,4.16779502,4414.2,4414.1,0.52436535]
[1757073747810,3.52369502,4414.2,4414.1,1.03706535]
[1757073748014,3.4368,4414.7,4414.6,0.3135]
[1757073748214,3.4368,4414.7,4414.6,0.83786535]
[1757073748215,4.1537,4414.7,4414.6,0.83786535]
[1757073748415,4.1537,4414.7,4414.6,41.11546535]
[1757073748610,4.1537,4414.7,4414.6,41.42896535]
[1757073749717,0.9459,4414.7,4414.6,41.42896535]
[1757073749919,0.7169,4414.7,4414.6,41.42896535]
[1757073750216,0.9459,4414.7,4414.6,41.42896535]
[1757073751016,0.9459,4414.7,4414.6,41.11546535]
[1757073751321,0.9459,4414.7,4414.6,0.31546535]
[1757073755022,1.5815371,4414.7,4414.6,0.31546535]
[1757073757723,5.5815371,4414.7,4414.6,0.31546535]
[1757073758123,5.3525371,4414.7,4414.6,0.31546535]
[1757073758323,5.5815371,4414.7,4414.6,0.31546535]
[1757073758527,5.2736371,4414.7,4413.3,0.3135]
[1757073758724,0.7169,4413.4,4413.3,0.7216]
[1757073758911,0.4379,4413.4,4413.3,0.7216]
[1757073759117,0.229,4413.4,4413.3,0.7216]
[1757073759520,0.3079,4413.7,4413.3,0.4081]
[1757073759724,0.229,4413.6,4413.4,0.3135]
[1757073760026,0.229,4413.6,4413.5,0.8389]
[1757073760320,3.2078,4413.8,4413.6,0.3135]
[1757073760622,3.2078,4413.8,4413.7,0.7216]
[1757073760821,3.9536,4413.8,4413.7,0.7216]
[1757073761930,3.2078,4413.8,4413.7,0.7216]
[1757073762120,3.4368,4413.8,4413.7,0.7216]
[1757073764931,3.9536,4413.8,4413.7,0.7216]
[1757073766232,4.1537,4413.8,4413.7,0.7216]
[1757073766521,0.3079,4413.7,4413.2,41.1135]
[1757073766727,0.7169,4413.5,4413.4,0.4081]
[1757073766928,0.7169,4413.5,4413.4,0.7216]
[1757073767927,0.8331,4413.5,4413.4,0.7216]
[1757073768725,0.7169,4413.5,4413.4,0.7216]
[1757073769324,0.8353,4413.5,4413.4,0.7216]
[1757073769528,0.8353,4413.5,4413.4,0.2089]
[1757073770526,0.3015,4413.4,4413.2,40.8]
[1757073770733,3.834,4413.3,4412.8,0.1722243]
[1757073770924,0.5016,4413.2,4413.1,0.1983]
[1757073771127,0.6987,4413.2,4413.1,1.01620581]
[1757073771427,0.3015,4413.4,4413.2,0.3121]
[1757073771730,0.7276,4413.4,4413.3,1.01620581]
[1757073772429,0.9277,4413.4,4413.3,1.01620581]
[1757073773030,0.229,4413.4,4413.3,1.01620581]
[1757073773223,3.5093,4413.9,4413.3,1.01620581]
[1757073773419,0.6262,4413.8,4413.7,0.5043]
[1757073773622,0.6262,4413.8,4413.7,1.01620581]
[1757073774027,0.9277,4413.8,4413.7,1.01620581]
[1757073774630,0.6987,4413.8,4413.7,1.01620581]
[1757073774834,0.9277,4413.8,4413.7,1.01620581]
[1757073775224,0.6987,4413.8,4413.7,1.01620581]
[1757073775830,0.9277,4413.8,4413.7,1.01620581]
[1757073777125,0.9277,4413.8,4413.7,0.7026]
[1757073777432,0.9277,4413.8,4413.7,1.01609588]
[1757073778133,0.9277,4413.8,4413.7,0.51179588]
[1757073778431,0.9277,4413.8,4413.7,0.82389588]
[1757073779632,0.9277,4413.8,4413.7,1.01609588]
[1757073780233,3.2078,4413.9,4413.7,1.01609588]
[1757073780433,3.2078,4413.9,4413.8,0.62559588]
[1757073780635,3.4368,4413.9,4413.8,1.01609588]
[1757073780834,0.229,4413.9,4413.8,1.01609588]
[1757073781327,0.1162,4415.0,4413.8,1.01609588]
[1757073781328,0.4986,4414.5,4414.4,0.3905]
[1757073781530,4.92041291,4415.1,4415.0,0.7026]
[1757073781835,5.14941291,4415.1,4415.0,1.01609588]
[1757073782334,5.12051291,4415.1,4415.0,1.01609588]
[1757073782534,5.34951291,4415.1,4415.0,1.01609588]
[1757073782834,5.14941291,4415.1,4415.0,1.01609588]
[1757073783137,5.34951291,4415.1,4415.0,0.51179588]
[1757073783538,5.34951291,4415.1,4415.0,0.31349588]
[1757073783837,5.34951291,4415.1,4415.0,0.51179588]
[1757073784238,5.34951291,4415.1,4415.0,0.31349588]
[1757073784626,4.1355,4415.1,4415.0,0.31349588]
[1757073785534,3.9065,4415.1,4415.0,0.51179588]
[1757073785739,3.9065,4415.1,4415.0,1.01609588]
[1757073785940,4.1355,4415.1,4415.0,1.14039588]
[1757073786437,0.3015,4415.5,4415.0,1.14039588]
[1757073786639,3.9065,4415.8,4415.7,0.7026]
[1757073786838,3.9065,4415.8,4415.7,1.01609588]
[1757073787044,4.1355,4415.8,4415.7,1.01609588]
[1757073787838,3.4368,4415.8,4415.7,1.01609588]
[1757073788039,0.229,4416.0,4415.9,0.3905]
[1757073788238,3.605,4416.3,4416.2,0.3905]
[1757073788544,3.6339,4416.3,4416.2,1.01609588]
[1757073788840,4.1355,4416.3,4416.2,1.01609588]
[1757073789445,3.9065,4416.3,4416.2,1.01609588]
[1757073789643,4.1355,4416.3,4416.2,1.01609588]
[1757073790445,0.4986,4416.8,4416.7,1.11011]
[1757073790635,3.2078,4417.1,4417.0,0.40749]
[1757073790835,3.9354,4417.1,4417.0,1.42358588]
[1757073791545,3.9354,4417.1,4417.0,1.54788588]
[1757073791743,3.4049,4417.1,4417.0,1.54788588]
[1757073791947,3.4368,4417.1,4417.0,1.54788588]
[1757073792147,3.2078,4417.1,4417.0,1.54788588]
[1757073792344,0.229,4417.2,4417.0,1.54788588]
[1757073792650,0.6987,4417.4,4417.3,0.7026]
[1757073792846,0.6987,4417.4,4417.3,0.70399588]
[1757073793249,0.6987,4417.4,4417.3,41.50399588]
[1757073793444,1.71261291,4417.7,4417.6,1.11003]
[1757073793650,4.82619487,4418.3,4417.6,1.11003]
[1757073793651,0.4261,4418.3,4418.2,0.79788]
[1757073793842,0.9277,4418.3,4418.2,0.70399588]
[1757073794037,0.9277,4418.3,4418.2,0.31349588]
[1757073794246,0.6262,4418.3,4418.1,40.8]
[1757073794446,0.3015,4418.2,4418.1,40.8]
[1757073794653,0.3015,4418.2,4418.1,41.11033674]
[1757073794947,0.3015,4418.2,4418.1,41.42243674]
[1757073795142,0.229,4418.3,4418.2,0.79788]
[1757073795143,0.4261,4418.3,4418.2,0.79788]
[1757073795339,0.1971,4418.3,4418.2,1.42003668]
[1757073795945,0.6987,4418.3,4418.2,1.42003668]
[1757073796145,0.229,4418.7,4418.6,0.40734]
[1757073796448,0.1971,4418.7,4418.6,1.41963239]
[1757073797436,0.1971,4418.9,4418.8,1.10992]
[1757073797640,0.229,4419.1,4419.0,0.8269]
[1757073797846,3.7064,4419.4,4419.3,1.10987]
[1757073798143,1.21401291,4419.5,4419.3,0.79777]
[1757073798340,1.21401291,4419.5,4419.4,1.01953042]
[1757073798540,1.21401291,4419.5,4419.4,41.81953042]
[1757073799751,0.4989,4419.5,4419.4,41.82539042]
[1757073799950,0.4989,4419.5,4419.4,42.05439042]
[1757073800252,0.1961,4419.5,4419.4,42.05439042]
[1757073800846,3.2078,4420.2,4419.9,0.40722]
[1757073801053,3.8391,4420.2,4420.1,0.7106]
[1757073801447,0.8219,4420.0,4419.9,0.40722]
[1757073801748,0.8219,4420.0,4419.7,0.40723]
[1757073801952,0.8219,4420.0,4419.8,0.40722]
[1757073802254,0.7051,4419.9,4419.8,0.59892]
[1757073802753,0.7051,4419.9,4419.8,0.40722]
[1757073803250,0.7051,4419.9,4419.8,0.80862]
[1757073803553,0.7051,4419.9,4419.8,1.11782]
[1757073803855,0.7051,4419.9,4419.8,0.80862]
[1757073804354,0.7051,4419.9,4419.8,1.11782]
[1757073805652,0.7051,4419.9,4419.8,0.80862]
[1757073805855,0.4196,4419.5,4419.4,40.8]
[1757073806054,3.8564,4419.5,4419.4,40.8]
[1757073806357,0.6486,4419.5,4419.4,40.8]
[1757073806859,0.7051,4418.9,4418.8,0.59901]
[1757073807261,0.7051,4418.9,4418.8,41.39901]
[1757073807559,0.9341,4418.9,4418.8,40.8]
[1757073808355,0.4023,4418.2,4418.1,0.59908]
[1757073808549,0.7051,4418.2,4418.1,1.11798]
[1757073808859,0.7051,4418.2,4418.1,41.91798]
[1757073809352,0.4023,4418.7,4418.1,41.1092]
[1757073809559,0.7051,4418.4,4418.3,0.40736]
[1757073809960,0.7051,4418.4,4418.3,0.80876]
[1757073810259,0.4989,4418.4,4418.3,1.11796]
[1757073810460,0.7051,4418.4,4418.3,1.11796]
[1757073812958,0.7051,4418.8,4418.7,0.40733]
[1757073813262,0.4989,4418.8,4418.7,1.11793]
[1757073813760,0.1961,4418.8,4418.7,1.11793]
[1757073813961,0.23,4418.9,4418.7,0.80873]
[1757073814262,0.7051,4418.9,4418.8,0.7106]
[1757073815864,0.9351,4418.9,4418.8,0.7106]
[1757073816171,0.7051,4418.9,4418.8,0.98971311]
[1757073816374,0.9351,4418.9,4418.8,0.98971311]
[1757073817071,1.56628884,4418.9,4418.8,0.98971311]
[1757073817970,1.56628884,4418.9,4418.8,0.27911311]
[1757073818579,1.56628884,4418.9,4418.8,0.47081311]
[1757073819076,1.56628884,4418.9,4418.8,0.68643311]
[1757073819261,1.56628884,4418.9,4418.8,0.27911311]
[1757073819464,1.56628884,4418.9,4418.8,0.87813311]
[1757073819866,1.56628884,4418.9,4418.8,0.47081311]
[1757073820164,1.56628884,4418.9,4418.8,0.27911311]
[1757073820876,1.56628884,4418.9,4418.8,0.68643311]
[1757073821377,1.56628884,4418.9,4418.8,0.27911311]
[1757073821970,0.7051,4418.2,4418.1,41.20738]
[1757073822172,0.6313,4418.2,4418.1,41.51658]
[1757073822476,3.2078,4418.5,4418.4,1.11796]
[1757073822477,3.4368,4418.5,4418.4,1.11796]
[1757073822677,0.229,4418.5,4418.4,1.11796]
[1757073823574,0.63118884,4418.9,4418.4,1.11796]
[1757073823575,0.63118884,4418.9,4418.8,0.80872]
[1757073823781,0.63118884,4418.9,4418.8,1.11792]
[1757073824077,0.63118884,4418.9,4418.8,1.34692]
[1757073825382,0.63118884,4418.9,4418.8,1.34792]
[1757073825680,0.63118884,4418.9,4418.8,42.14792]
[1757073827883,0.4023,4419.6,4419.5,1.24105]
[1757073830579,1.42581291,4419.9,4419.8,0.4213]
[1757073830777,1.42581291,4419.9,4419.8,1.12203]
[1757073830778,1.62651291,4419.9,4419.8,1.12203]
[1757073830978,1.94391291,4419.9,4419.8,1.12203]
[1757073831280,0.7299,4419.6,4419.5,0.40725]
[1757073831480,0.7299,4419.6,4419.2,3.5013]
[1757073831481,0.4125,4419.6,4419.3,0.40727]
[1757073831671,0.7299,4419.4,4419.2,3.2078]
[1757073831878,0.3174,4419.3,4419.2,3.2078]
[1757073832077,0.7299,4419.3,4419.2,3.2078]
[1757073832279,0.7299,4419.3,4419.2,44.70858]
[1757073832479,0.2118,4419.3,4419.2,44.70858]
[1757073832680,0.5292,4419.3,4419.2,44.70858]
[1757073832878,1.15821338,4419.3,4419.2,44.70858]
[1757073833784,0.84081338,4419.3,4419.2,44.70858]
[1757073833984,0.62901338,4419.3,4419.2,44.70858]
[1757073837186,0.94641338,4419.3,4419.2,44.70858]
[1757073837587,0.3174,4419.3,4419.2,44.70858]
[1757073837885,0.3174,4419.3,4419.2,41.50078]
[1757073840188,0.6415,4419.4,4419.3,0.82857]
[1757073840387,0.6415,4419.4,4419.3,1.12207]
[1757073842389,0.9589,4419.4,4419.3,1.12207]
[1757073844293,0.6415,4419.4,4419.3,1.12207]
[1757073844989,0.6415,4419.4,4419.3,0.7148]
[1757073845186,0.6415,4419.4,4419.3,1.12207]
[1757073845890,0.229,4419.4,4419.3,1.12207]
[1757073846087,3.2078,4420.2,4419.5,0.1172]
[1757073846291,0.4125,4420.0,4419.9,1.12202]
[1757073846491,0.4408,4420.0,4419.9,1.12202]
[1757073846880,0.229,4420.0,4419.9,1.12202]
[1757073847383,3.2078,4420.7,4420.5,0.1172]
[1757073847588,0.2118,4420.7,4420.6,0.7148]
[1757073847994,0.7299,4420.7,4420.6,0.7148]
[1757073848486,0.9589,4420.7,4420.6,0.7148]
[1757073850591,0.7299,4420.7,4420.6,0.7148]
[1757073850786,0.6415,4420.7,4420.6,0.7148]
[1757073851191,0.9589,4420.7,4420.6,0.7148]
[1757073851597,0.6415,4420.7,4420.6,0.7148]
[1757073851798,0.9589,4420.7,4420.6,0.7148]
[1757073853303,0.7299,4420.7,4420.6,0.7148]
[1757073853488,31.233,4420.8,4420.7,0.2935]
[1757073853693,3.5252,4421.2,4421.1,1.12191]
[1757073853694,3.2078,4421.2,4421.1,1.12191]
[1757073853900,3.6486,4421.2,4421.1,0.7148]
[1757073854296,3.8493,4421.2,4421.1,0.7148]
[1757073854599,3.8493,4421.2,4421.1,1.12191]
[1757073854799,3.8493,4421.2,4421.1,0.7148]
[1757073855203,3.8493,4421.2,4421.1,1.12191]
[1757073855802,3.8493,4421.2,4421.1,0.7148]
[1757073856407,4.1667,4421.2,4421.1,0.5042]
[1757073858002,4.1667,4421.2,4421.1,1.12191]
[1757073858303,3.8493,4421.2,4421.1,1.12191]
[1757073858503,3.6203,4421.2,4421.1,1.12191]
[1757073858700,3.8493,4421.2,4421.1,1.12191]
[1757073859102,3.8493,4421.2,4421.1,0.7148]
[1757073859299,4.1451,4421.2,4421.1,0.5042]
[1757073859700,0.2958,4421.1,4420.6,40.8]
[1757073859906,0.4014,4420.9,4420.8,0.60673]
[1757073860100,0.6972,4420.9,4420.8,0.89573]
[1757073860307,0.6972,4420.9,4420.8,1.08853]
[1757073860502,0.2958,4420.8,4419.6,3.2078]
[1757073860702,0.4014,4419.7,4419.0,0.1251]
[1757073860908,0.198,4419.1,4419.0,0.9248]
[1757073861497,0.198,4419.1,4419.0,41.7248]